[Event "55th Rubinstein Memorial-B 2019"]
[Site "Polanica-Zdroj"]
[Date "2019.08.17"]
[Round "1.1"]
[White "Grubiak, Roman"]
[Black "Janocha, Wieslaw"]
[Result "0-1"]
[ECO "A48"]
[WhiteElo "1694"]
[BlackElo "2264"]
[Annotator "ChessBase"]
[PlyCount "73"]
[EventDate "2019.08.17"]
[EventType "swiss"]
[EventCountry "POL"]
[SourceTitle "playchess.com"]
[Source "ChessBase"]
[SourceQuality "1"]
[TimeControl "40/5400+30:1800+30"]

1. d4 {[%emt 0:00:00]} Nf6 {[%emt 0:00:07]} 2. Nf3 {[%emt 0:00:10]} g6 {[%emt 0:01:52]} 3. Nc3 {[%emt 0:00:13]} d5 {[%emt 0:00:14]} 4. Bf4 {[%emt 0:00:17]} Bg7 {[%emt 0:00:55]} 5. e3 {[%emt 0:00:47]} O-O {[%emt 0:02:21]} 6. Be2 {[%emt 0:00:20]} b6 {[%emt 0:03:33]} 7. Nb5 {[%emt 0:04:23]} Na6 {[%emt 0:00:55]} 8. c3 {[%emt 0:00:21]} Nh5 {[%emt 0:05:27]} 9. Bg5 {[%emt 0:01:07]} h6 {[%emt 0:11:47]} 10. Bh4 {[%emt 0:00:15]} g5 {[%emt 0:00:10]} 11. Ne5 {[%emt 0:06:06]} Nf6 {[%emt 0:01:47]} 12. Bg3 {[%emt 0:00:26]} Ne4 {[%emt 0:01:23]} 13. f3 {[%emt 0:18:35]} Nxg3 {[%emt 0:07:54]} 14. hxg3 {[%emt 0:00:02]} f6 {[%emt 0:10:00]} 15. Ng4 {[%emt 0:08:34]} Bxg4 {[%emt 0:02:10]} 16. fxg4 {[%emt 0:00:03]} c6 {[%emt 0:00:30]} 17. Na3 {[%emt 0:01:06]} Nc7 {[%emt 0:00:20]} 18. Qd3 {[%emt 0:02:05]} Qd6 {[%emt 0:04:18]} 19. Rh3 {[%emt 0:01:00]} e5 {[%emt 0:05:03]} 20. Qg6 {[%emt 0:02:26]} exd4 {[%emt 0:03:56]} 21. Nc2 {[%emt 0:09:45]} c5 {[%emt 0:03:44]} 22. Bd3 {[%emt 0:01:20]} Rf7 {[%emt 0:01:14]} 23. O-O-O {[%emt 0:01:58]} dxc3 {[%emt 0:03:41]} 24. b3 {[%emt 0:03:57]} Kf8 {[%emt 0:04:59]} 25. e4 {[%emt 0:07:59]} d4 {[%emt 0:05:31]} 26. Bc4 {[%emt 0:01:14]} Ne6 {[%emt 0:01:21]} 27. Ne3 {[%emt 0:01:42]} Qe5 {[%emt 0:02:14]} 28. Nc2 {[%emt 0:11:50]} Re7 {[%emt 0:05:45]} 29. Rdh1 {[%emt 0:05:12]} Nf4 {[%emt 0:00:46]} 30. Qh7 {[%emt 0:01:20]} Ne6 {[%emt 0:03:32]} 31. Ne1 {[%emt 0:05:12]} Ke8 {[%emt 0:01:52]} 32. Nd3 {[%emt 0:02:05]} Nf8 {[%emt 0:02:14]} 33. Qg8 {[%emt 0:01:31]} Qd6 {[%emt 0:01:29]} 34. Re1 {[%emt 0:01:41]} Kd8 {[%emt 0:01:22]} 35. Rhh1 {[%emt 0:01:27]} Kc7 {[%emt 0:00:18]} 36. e5 {[%emt 0:00:52]} fxe5 {[%emt 0:00:21]} 37. Rhf1 {[%emt 0:01:09]} 0-1

[Event "55th Rubinstein Memorial-B 2019"]
[Site "Polanica-Zdroj"]
[Date "2019.08.17"]
[Round "1.2"]
[White "Shilov, Sergej"]
[Black "Tomalak, Stanislaw"]
[Result "1-0"]
[ECO "C27"]
[WhiteElo "2129"]
[BlackElo "1694"]
[Annotator "ChessBase"]
[PlyCount "24"]
[EventDate "2019.08.17"]
[EventType "swiss"]
[EventCountry "POL"]
[SourceTitle "playchess.com"]
[Source "ChessBase"]
[SourceQuality "1"]
[TimeControl "40/5400+30:1800+30"]

1. e4 {[%emt 0:08:25]} e5 {[%emt 0:00:00]} 2. Nc3 {[%emt 0:00:20]} Nf6 {[%emt 0:00:00]} 3. Bc4 {[%emt 0:00:02]} Nxe4 {[%emt 0:00:15]} 4. Qh5 {[%emt 0:00:04]} Nd6 {[%emt 0:00:33]} 5. Bb3 {[%emt 0:00:39]} Be7 {[%emt 0:00:50]} 6. Nf3 {[%emt 0:01:55]} Nc6 {[%emt 0:01:31]} 7. Ne4 {[%emt 0:04:57]} O-O {[%emt 0:03:13]} 8. Nxd6 {[%emt 0:01:04]} cxd6 {[%emt 0:00:59]} 9. h4 {[%emt 0:00:52]} Qe8 {[%emt 0:10:55]} 10. Ng5 {[%emt 0:11:18]} h6 {[%emt 0:03:32]} 11. Qg6 {[%emt 0:00:17]} Bxg5 {[%emt 0:00:57]} 12. hxg5 Qe6 1-0

[Event "55th Rubinstein Memorial-B 2019"]
[Site "Polanica-Zdroj"]
[Date "2019.08.17"]
[Round "1.3"]
[White "Sobotka, Jan"]
[Black "Marusenko, Petr"]
[Result "1-0"]
[ECO "B17"]
[WhiteElo "1660"]
[BlackElo "2124"]
[Annotator "ChessBase"]
[PlyCount "87"]
[EventDate "2019.08.17"]
[EventType "swiss"]
[EventCountry "POL"]
[SourceTitle "playchess.com"]
[Source "ChessBase"]
[SourceQuality "1"]
[TimeControl "40/5400+30:1800+30"]

1. e4 c6 2. d4 d5 3. Nc3 dxe4 4. Nxe4 Nd7 5. Nf3 Ngf6 6. Ng3 e6 7. c4 Bb4+ 8. Bd2 Qa5 9. Bd3 O-O 10. O-O Bxd2 11. Nxd2 c5 12. Nb3 Qc7 13. Qc2 b6 14. Rad1 Bb7 15. Rfe1 Rfd8 16. dxc5 bxc5 17. Ne4 Nxe4 18. Bxe4 Bxe4 19. Qxe4 Nf6 20. Qf3 Rab8 21. Rxd8+ Rxd8 22. Rd1 Rxd1+ 23. Qxd1 h5 24. h3 Qe5 25. Qd2 g5 26. Qe3 Qxe3 27. fxe3 Ne4 28. Kf1 Kg7 29. Ke2 Kf6 30. Na5 Kf5 31. Nc6 a6 32. a4 g4 33. h4 Nd6 34. b3 Ke4 35. Nb8 f5 36. Nxa6 Nb7 37. b4 cxb4 38. Nxb4 e5 39. Nc6 f4 40. a5 Nc5 41. Nb4 f3+ 42. gxf3+ gxf3+ 43. Kf2 Kf5 44. Kxf3 1-0

[Event "55th Rubinstein Memorial-B 2019"]
[Site "Polanica-Zdroj"]
[Date "2019.08.17"]
[Round "1.4"]
[White "Klimaszewski, Dariusz"]
[Black "Marek, Eugeniusz"]
[Result "1-0"]
[ECO "B13"]
[WhiteElo "2152"]
[BlackElo "1648"]
[Annotator "ChessBase"]
[PlyCount "101"]
[EventDate "2019.08.17"]
[EventType "swiss"]
[EventCountry "POL"]
[SourceTitle "playchess.com"]
[Source "ChessBase"]
[SourceQuality "1"]
[TimeControl "40/5400+30:1800+30"]

1. e4 {[%emt 0:00:00]} c6 {[%emt 0:00:00]} 2. d4 {[%emt 0:00:06]} d5 {[%emt 0:00:00]} 3. exd5 {[%emt 0:00:12]} cxd5 {[%emt 0:00:11]} 4. Bd3 {[%emt 0:00:08]} Nf6 {[%emt 0:00:22]} 5. h3 {[%emt 0:00:17]} Nc6 {[%emt 0:00:29]} 6. c3 {[%emt 0:00:09]} e6 {[%emt 0:01:49]} 7. Nf3 {[%emt 0:01:08]} Bd6 {[%emt 0:00:18]} 8. O-O {[%emt 0:00:11]} O-O {[%emt 0:00:33]} 9. Re1 {[%emt 0:00:41]} Bd7 {[%emt 0:01:33]} 10. Nbd2 {[%emt 0:00:41]} Qc7 {[%emt 0:01:16]} 11. Qe2 {[%emt 0:00:23]} Nh5 {[%emt 0:07:24]} 12. g3 {[%emt 0:16:59]} g6 {[%emt 0:03:54]} 13. Ne5 {[%emt 0:01:37]} Rad8 {[%emt 0:04:03]} 14. Ndf3 {[%emt 0:00:30]} Bc8 {[%emt 0:01:53]} 15. Bh6 {[%emt 0:01:34]} Ng7 {[%emt 0:01:08]} 16. Qd2 {[%emt 0:01:14]} f6 {[%emt 0:00:45]} 17. Nxc6 {[%emt 0:03:19]} bxc6 {[%emt 0:00:33]} 18. c4 {[%emt 0:00:15]} Rfe8 {[%emt 0:06:40]} 19. c5 {[%emt 0:01:45]} Bf8 {[%emt 0:00:15]} 20. Bf4 {[%emt 0:00:16]} Qf7 {[%emt 0:02:05]} 21. b4 {[%emt 0:01:24]} Nh5 {[%emt 0:00:23]} 22. Bf1 {[%emt 0:02:23]} Nxf4 {[%emt 0:02:55]} 23. Qxf4 {[%emt 0:00:28]} g5 {[%emt 0:02:21]} 24. Qd2 {[%emt 0:01:00]} Qh5 {[%emt 0:01:35]} 25. g4 {[%emt 0:03:25]} Qf7 {[%emt 0:00:38]} 26. a4 {[%emt 0:00:19]} h6 {[%emt 0:06:07]} 27. b5 {[%emt 0:01:00]} e5 {[%emt 0:00:33]} 28. dxe5 {[%emt 0:02:25]} Bg7 {[%emt 0:02:50]} 29. Nd4 {[%emt 0:01:45]} Bb7 {[%emt 0:10:58]} 30. e6 {[%emt 0:00:32]} Qe7 {[%emt 0:00:37]} 31. Rac1 {[%emt 0:00:19]} Qc7 {[%emt 0:02:21]} 32. Bd3 {[%emt 0:01:50]} Bf8 {[%emt 0:09:18]} 33. Bg6 {[%emt 0:05:03]} Re7 {[%emt 0:01:15]} 34. Qd3 {[%emt 0:00:44]} Rg7 {[%emt 0:12:51]} 35. Bf7+ {[%emt 0:01:01]} Rxf7 {[%emt 0:02:16]} 36. exf7+ {[%emt 0:00:11]} Qxf7 {[%emt 0:00:03]} 37. Re6 {[%emt 0:05:41]} cxb5 {[%emt 0:00:30]} 38. axb5 {[%emt 0:00:10]} Bc8 {[%emt 0:00:15]} 39. Re2 {[%emt 0:01:02]} h5 {[%emt 0:00:10]} 40. Nc6 {[%emt 0:00:00]} Rd7 {[%emt 0:00:00]} 41. b6 {[%emt 0:04:16]} axb6 {[%emt 0:01:35]} 42. cxb6 {[%emt 0:00:09]} Bb7 {[%emt 0:00:42]} 43. Nd4 {[%emt 0:01:15]} hxg4 44. hxg4 Bd6 {[%emt 0:01:14]} 45. Nf5 {[%emt 0:02:26]} Qh7 {[%emt 0:00:15]} 46. Re8+ {[%emt 0:00:13]} Bf8 {[%emt 0:00:41]} 47. Rc7 {[%emt 0:02:03]} Rxc7 {[%emt 0:00:59]} 48. bxc7 {[%emt 0:00:20]} Qd7 {[%emt 0:04:09]} 49. Ne7+ {[%emt 0:01:06]} Kh8 {[%emt 0:02:00]} 50. Rxf8+ {[%emt 0:00:26]} Kg7 {[%emt 0:00:03]} 51. Rg8+ {[%emt 0:33:23] Qd8} 1-0

[Event "55th Rubinstein Memorial-B 2019"]
[Site "Polanica-Zdroj"]
[Date "2019.08.18"]
[Round "2.1"]
[White "Janocha, Wieslaw"]
[Black "Filar, Slawomir"]
[Result "1-0"]
[ECO "B19"]
[WhiteElo "2264"]
[BlackElo "1809"]
[Annotator "NA"]
[PlyCount "99"]
[EventDate "2019.08.17"]
[EventType "swiss"]
[EventCountry "POL"]
[SourceTitle "playchess.com"]
[Source "ChessBase"]
[SourceQuality "1"]
[TimeControl "40/5400+30:1800+30"]

1. e4 {[%emt 0:00:00]} c6 {[%emt 0:00:00]} 2. Nc3 {[%emt 0:00:05]} d5 {[%emt 0:00:12]} 3. d4 {[%emt 0:00:45]} dxe4 {[%emt 0:00:39]} 4. Nxe4 {[%emt 0:00:05]} Bf5 {[%emt 0:00:29]} 5. Ng3 {[%emt 0:00:07]} Bg6 {[%emt 0:00:19]} 6. Nf3 {[%emt 0:00:18]} Nd7 {[%emt 0:00:55]} 7. h4 {[%emt 0:00:18]} h6 {[%emt 0:00:26]} 8. h5 {[%emt 0:00:20]} Bh7 {[%emt 0:00:07]} 9. Bd3 {[%emt 0:00:07]} Bxd3 {[%emt 0:00:12]} 10. Qxd3 {[%emt 0:00:03]} e6 {[%emt 0:00:38]} 11. Bf4 {[%emt 0:01:46]} Qa5+ {[%emt 0:00:59]} 12. Bd2 {[%emt 0:06:20]} Qc7 {[%emt 0:00:20]} 13. O-O-O {[%emt 0:00:22]} O-O-O {[%emt 0:01:02]} 14. Ne4 {[%emt 0:00:30]} Ngf6 {[%emt 0:00:54]} 15. g3 {[%emt 0:01:50]} Nxe4 {[%emt 0:01:05]} 16. Qxe4 {[%emt 0:00:23]} Nf6 {[%emt 0:00:20]} 17. Qe2 {[%emt 0:00:04]} c5 {[%emt 0:02:39]} 18. dxc5 {[%emt 0:01:39]} Bxc5 {[%emt 0:01:20]} 19. Rh4 {[%emt 0:00:31]} Kb8 {[%emt 0:13:00]} 20. Bf4 {[%emt 0:00:27]} Bd6 {[%emt 0:00:09]} 21. Rxd6 {[%emt 0:00:08]} Rxd6 {[%emt 0:00:10]} 22. Ne5 {[%emt 0:00:07]} Nd5 {[%emt 0:07:44]} 23. Nxf7 {[%emt 0:00:11]} Nxf4 {[%emt 0:00:06]} 24. Rxf4 {[%emt 0:00:08]} Re8 {[%emt 0:05:27]} 25. Nxd6 {[%emt 0:02:37]} Qxd6 {[%emt 0:00:10]} 26. Rf7 {[%emt 0:00:23]} Re7 {[%emt 0:01:58]} 27. Rf8+ {[%emt 0:06:40]} Kc7 {[%emt 0:00:12]} 28. Qc4+ {[%emt 0:01:07]} Qc6 {[%emt 0:01:56]} 29. Qxc6+ {[%emt 0:01:16]} Kxc6 {[%emt 0:00:15]} 30. Kd2 {[%emt 0:00:16]} Kd5 {[%emt 0:01:25]} 31. Ke3 {[%emt 0:02:16]} Rd7 {[%emt 0:04:28]} 32. f4 {[%emt 0:01:25]} Kd6 {[%emt 0:04:18]} 33. Re8 {[%emt 0:03:22]} Rc7 {[%emt 0:01:31]} 34. c3 {[%emt 0:00:26]} Kd7 {[%emt 0:00:33]} 35. Rg8 {[%emt 0:00:26]} Kd6 {[%emt 0:00:31]} 36. Kd4 {[%emt 0:03:03]} Rd7 {[%emt 0:00:47]} 37. Ke4 {[%emt 0:02:47]} Rf7 {[%emt 0:03:06]} 38. Rd8+ {[%emt 0:03:33]} Ke7 {[%emt 0:00:55]} 39. Ra8 {[%emt 0:04:32]} a6 {[%emt 0:00:28]} 40. g4 {[%emt 0:00:00]} Kf6 {[%emt 0:00:00]} 41. Rc8 {[%emt 0:05:01]} Rd7 $18 {[%emt 0:03:32]} 42. Rc5 {[%emt 0:02:54]} Ke7 {[%emt 0:09:39]} 43. Ke5 {[%emt 0:00:45]} Kf7 {[%emt 0:01:43]} 44. a4 {[%emt 0:00:57]} Ke7 {[%emt 0:01:49]} 45. a5 {[%emt 0:00:09]} Kf7 {[%emt 0:01:01]} 46. b4 {[%emt 0:01:40]} Ke7 {[%emt 0:00:49]} 47. c4 {[%emt 0:00:09]} Kf7 {[%emt 0:00:23]} 48. b5 {[%emt 0:00:24]} axb5 {[%emt 0:02:13]} 49. cxb5 {[%emt 0:00:08]} Ke7 {[%emt 0:03:14]} 50. b6 {[%emt 0:00:07]} 1-0

[Event "55th Rubinstein Memorial-B 2019"]
[Site "Polanica-Zdroj"]
[Date "2019.08.18"]
[Round "2.2"]
[White "Solek, Zenon"]
[Black "Shilov, Sergej"]
[Result "0-1"]
[ECO "B29"]
[WhiteElo "1782"]
[BlackElo "2129"]
[Annotator "NA"]
[PlyCount "64"]
[EventDate "2019.08.17"]
[EventType "swiss"]
[EventCountry "POL"]
[SourceTitle "playchess.com"]
[Source "ChessBase"]
[SourceQuality "1"]
[TimeControl "40/5400+30:1800+30"]

1. e4 {[%emt 0:00:00]} c5 {[%emt 0:00:01]} 2. Nf3 {[%emt 0:00:00]} Nf6 {[%emt 0:00:15]} 3. e5 {[%emt 0:01:13]} Nd5 {[%emt 0:00:06]} 4. c4 {[%emt 0:00:22]} Nb6 {[%emt 0:01:28]} 5. d3 {[%emt 0:04:37]} d5 {[%emt 0:01:43]} 6. exd6 {[%emt 0:01:23]} Qxd6 {[%emt 0:00:46]} 7. Nc3 {[%emt 0:00:13]} e5 {[%emt 0:09:02]} 8. Be2 {[%emt 0:03:16]} Nc6 {[%emt 0:02:04]} 9. a4 {[%emt 0:08:00]} Bf5 {[%emt 0:04:55]} 10. a5 {[%emt 0:03:17]} Nc8 {[%emt 0:01:14]} 11. Be3 {[%emt 0:07:59]} Nd4 {[%emt 0:08:17]} 12. Nxd4 {[%emt 0:04:02]} cxd4 {[%emt 0:01:34]} 13. Nb5 {[%emt 0:00:02]} Qd7 {[%emt 0:04:47]} 14. Bd2 {[%emt 0:00:19]} Nd6 {[%emt 0:01:55]} 15. Na3 {[%emt 0:03:26]} Be7 {[%emt 0:00:43]} 16. O-O {[%emt 0:00:24]} O-O {[%emt 0:00:36]} 17. b4 {[%emt 0:00:36]} e4 {[%emt 0:04:24]} 18. Qb3 {[%emt 0:02:20]} Be6 {[%emt 0:02:21]} 19. Rfd1 {[%emt 0:05:05]} f5 {[%emt 0:01:03]} 20. Nc2 {[%emt 0:03:09]} Bf6 {[%emt 0:00:38]} 21. Qa4 {[%emt 0:00:11]} Qf7 {[%emt 0:02:25]} 22. Bf4 {[%emt 0:01:28]} exd3 {[%emt 0:01:56]} 23. Bxd3 {[%emt 0:04:28]} Nxc4 {[%emt 0:00:09]} 24. Rab1 {[%emt 0:00:38]} Rfd8 {[%emt 0:01:41]} 25. a6 {[%emt 0:02:06]} b6 {[%emt 0:01:32]} 26. Qb5 {[%emt 0:01:41]} g5 {[%emt 0:01:43]} 27. Bc1 {[%emt 0:01:22]} Rac8 {[%emt 0:03:39]} 28. Bxf5 {[%emt 0:02:01]} Nd6 {[%emt 0:00:33]} 29. Bxe6 {[%emt 0:00:06]} Nxb5 {[%emt 0:00:04]} 30. Bxf7+ {[%emt 0:00:04]} Kxf7 {[%emt 0:00:08]} 31. Rd2 {[%emt 0:02:00]} d3 {[%emt 0:00:25]} 32. Ne3 {[%emt 0:01:32]} Nc3 {[%emt 0:00:19]} 0-1

[Event "55th Rubinstein Memorial-B 2019"]
[Site "Polanica-Zdroj"]
[Date "2019.08.18"]
[Round "2.3"]
[White "Kolinski, Stanislaw"]
[Black "Klimaszewski, Dariusz"]
[Result "0-1"]
[ECO "B39"]
[WhiteElo "1755"]
[BlackElo "2152"]
[Annotator "NA"]
[PlyCount "82"]
[EventDate "2019.08.17"]
[EventType "swiss"]
[EventCountry "POL"]
[SourceTitle "playchess.com"]
[Source "ChessBase"]
[SourceQuality "1"]
[TimeControl "40/5400+30:1800+30"]

1. c4 c5 2. Nf3 Nf6 3. d4 cxd4 4. Nxd4 Nc6 5. Nc3 g6 6. e4 $14 Bg7 7. Be3 Ng4 8. Qxg4 Nxd4 9. Qd1 Ne6 10. Qd2 Qa5 11. Nd1 Qxd2+ 12. Bxd2 b6 13. Bc3 Bxc3+ 14. Nxc3 Nd4 15. Bd3 Ba6 16. O-O Rc8 17. b3 e5 18. f4 Nc6 19. Nd5 O-O 20. fxe5 Kg7 21. Rf2 Nxe5 22. Be2 Bb7 23. Nf6 h5 24. Rd1 Rfd8 25. g4 hxg4 26. Nxg4 Nxg4 27. Bxg4 Bxe4 28. Rxd7 Rxd7 29. Bxd7 Rd8 30. Bg4 Rd3 31. Be2 Re3 32. Bd1 f5 33. Rd2 Kf6 34. b4 Ke5 35. Bb3 Re1+ 36. Kf2 Rh1 37. Kg3 f4+ 38. Kg4 Rg1+ 39. Kh4 Bf3 40. c5 g5+ 41. Kh3 Bg4# 0-1

[Event "55th Rubinstein Memorial-B 2019"]
[Site "Polanica-Zdroj"]
[Date "2019.08.18"]
[Round "2.4"]
[White "Fainberg, Boris"]
[Black "Kozlowski, Janusz"]
[Result "0-1"]
[ECO "A46"]
[WhiteElo "2030"]
[BlackElo "1781"]
[Annotator "NA"]
[PlyCount "53"]
[EventDate "2019.08.17"]
[EventType "swiss"]
[EventCountry "POL"]
[SourceTitle "playchess.com"]
[Source "ChessBase"]
[SourceQuality "1"]
[TimeControl "40/5400+30:1800+30"]

1. d4 {[%emt 0:01:57]} Nf6 {[%emt 0:00:00]} 2. Nf3 {[%emt 0:00:26]} d5 {[%emt 0:00:00]} 3. c4 {[%emt 0:00:08]} e6 {[%emt 0:00:26]} 4. e3 {[%emt 0:01:50]} Be7 {[%emt 0:00:42]} 5. Nc3 {[%emt 0:00:39]} O-O {[%emt 0:00:18]} 6. Bd3 {[%emt 0:00:33]} c6 {[%emt 0:02:22]} 7. O-O {[%emt 0:01:43]} Nbd7 {[%emt 0:00:32]} 8. b3 {[%emt 0:10:28]} Bd6 {[%emt 0:06:10]} 9. Bb2 {[%emt 0:04:27]} e5 {[%emt 0:01:04]} 10. cxd5 {[%emt 0:02:15]} exd4 {[%emt 0:03:58]} 11. exd4 {[%emt 0:14:19]} cxd5 {[%emt 0:00:29]} 12. Re1 {[%emt 0:05:29]} a6 {[%emt 0:03:53]} 13. Rc1 {[%emt 0:06:33]} Re8 {[%emt 0:01:00]} 14. Rxe8+ {[%emt 0:03:05]} Qxe8 {[%emt 0:00:13]} 15. Qc2 {[%emt 0:00:23]} Nf8 {[%emt 0:00:32]} 16. Re1 {[%emt 0:00:45]} Qd8 {[%emt 0:00:32]} 17. Ne5 {[%emt 0:00:42]} Bd7 {[%emt 0:08:12]} 18. a3 {[%emt 0:14:03]} Rc8 {[%emt 0:00:49]} 19. Qd2 {[%emt 0:02:08]} Qc7 {[%emt 0:12:07]} 20. h3 {[%emt 0:06:29]} Ne6 {[%emt 0:05:00]} 21. Nxd7 {[%emt 0:02:21]} Qxd7 {[%emt 0:00:50]} 22. Na4 {[%emt 0:01:16]} Re8 {[%emt 0:05:45]} 23. Bf5 {[%emt 0:04:51]} Qb5 {[%emt 0:03:35]} 24. Qc2 {[%emt 0:02:54]} Nxd4 {[%emt 0:01:24]} 25. Rxe8+ {[%emt 0:03:41]} Qxe8 {[%emt 0:01:03]} 26. Qd1 {[%emt 0:01:14]} Nxf5 {[%emt 0:00:42]} 27. g3 {[%emt 0:00:41]} 0-1

[Event "55th Rubinstein Memorial-B 2019"]
[Site "Polanica-Zdroj"]
[Date "2019.08.18"]
[Round "2.5"]
[White "Galyga, Jozef"]
[Black "Meizlin, Yaacov"]
[Result "1-0"]
[ECO "A05"]
[WhiteElo "1754"]
[BlackElo "2027"]
[Annotator "NA"]
[PlyCount "119"]
[EventDate "2019.08.17"]
[EventType "swiss"]
[EventCountry "POL"]
[SourceTitle "playchess.com"]
[Source "ChessBase"]
[SourceQuality "1"]
[TimeControl "40/5400+30:1800+30"]

1. Nf3 {[%emt 0:00:00]} Nf6 {[%emt 0:00:00]} 2. b3 {[%emt 0:00:00]} d6 {[%emt 0:01:40]} 3. Bb2 {[%emt 0:02:24]} e5 {[%emt 0:01:09]} 4. d3 {[%emt 0:00:43]} Be7 {[%emt 0:00:57]} 5. e4 {[%emt 0:00:21]} O-O {[%emt 0:02:01]} 6. Be2 {[%emt 0:00:12]} h6 {[%emt 0:02:57]} 7. Nbd2 {[%emt 0:00:19]} Be6 {[%emt 0:00:52]} 8. O-O {[%emt 0:00:14]} c6 {[%emt 0:01:11]} 9. d4 {[%emt 0:00:40]} exd4 {[%emt 0:05:31]} 10. Nxd4 {[%emt 0:00:25]} Bd7 {[%emt 0:05:03]} 11. Re1 {[%emt 0:07:21]} a5 {[%emt 0:00:21]} 12. a3 {[%emt 0:01:34]} Na6 {[%emt 0:00:18]} 13. Bf3 {[%emt 0:07:12]} Nh7 {[%emt 0:01:46]} 14. Nf1 {[%emt 0:04:06]} Bf6 {[%emt 0:03:54]} 15. Rb1 {[%emt 0:01:06]} g6 {[%emt 0:16:41]} 16. Bg4 {[%emt 0:04:55]} Nc5 {[%emt 0:05:58]} 17. f4 {[%emt 0:08:19]} Re8 {[%emt 0:06:54]} 18. Bf3 {[%emt 0:05:14]} Qc7 {[%emt 0:12:32]} 19. Qd2 {[%emt 0:06:11]} Rad8 {[%emt 0:06:21]} 20. Kh1 {[%emt 0:01:10]} Bg7 {[%emt 0:04:32]} 21. b4 {[%emt 0:02:03]} Na4 {[%emt 0:01:38]} 22. Ba1 {[%emt 0:00:35]} axb4 {[%emt 0:00:36]} 23. axb4 {[%emt 0:00:32]} b5 24. Nb3 {[%emt 0:10:55]} Bxa1 {[%emt 0:02:32]} 25. Rxa1 {[%emt 0:00:14]} Nf8 {[%emt 0:05:18]} 26. Rad1 {[%emt 0:04:29]} Nb2 {[%emt 0:01:57]} 27. Qxd6 {[%emt 0:03:35]} Qc8 {[%emt 0:00:36]} 28. Ra1 {[%emt 0:01:55]} Bg4 {[%emt 0:00:36]} 29. Qf6 {[%emt 0:01:28]} Bxf3 {[%emt 0:00:21]} 30. gxf3 {[%emt 0:00:49]} Na4 {[%emt 0:02:36]} 31. Rad1 {[%emt 0:03:55]} Rxd1 {[%emt 0:00:34]} 32. Rxd1 {[%emt 0:00:08]} Qh3 {[%emt 0:00:44]} 33. Ng3 {[%emt 0:04:39]} h5 {[%emt 0:00:24]} 34. Nd4 {[%emt 0:06:23]} h4 {[%emt 0:00:53]} 35. Nge2 {[%emt 0:00:39]} Nb2 {[%emt 0:04:21]} 36. Rg1 {[%emt 0:00:22]} Nc4 {[%emt 0:00:48]} 37. f5 {[%emt 0:01:40]} Nd7 {[%emt 0:01:38]} 38. Qg5 {[%emt 0:00:34]} Nce5 39. Nf4 {[%emt 0:00:54]} Nxf3 {[%emt 0:02:32]} 40. Nxh3 {[%emt 0:00:00]} Nxg5 {[%emt 0:00:00]} 41. Nxg5 {[%emt 0:01:29]} c5 {[%emt 0:00:37]} 42. bxc5 {[%emt 0:00:58]} Nxc5 {[%emt 0:00:01]} 43. Nxb5 {[%emt 0:00:18]} Nxe4 {[%emt 0:00:04]} 44. Nxe4 {[%emt 0:00:11]} Rxe4 {[%emt 0:00:08]} 45. fxg6 {[%emt 0:00:13]} fxg6 46. Rxg6+ {[%emt 0:00:10]} Kh7 {[%emt 0:00:40]} 47. Rg1 {[%emt 0:01:02]} Re2 {[%emt 0:00:49]} 48. Rc1 {[%emt 0:00:30]} Re5 {[%emt 0:00:35]} 49. c4 {[%emt 0:00:10]} Rc5 50. Nd6 {[%emt 0:00:51]} Kg6 {[%emt 0:00:09]} 51. Rg1+ {[%emt 0:02:41]} Kh5 {[%emt 0:00:17]} 52. Kg2 {[%emt 0:00:44]} Kg4 {[%emt 0:00:12]} 53. Re1 {[%emt 0:05:16]} Ra5 {[%emt 0:03:21]} 54. Re4+ {[%emt 0:02:50]} Kh5 {[%emt 0:00:12]} 55. Kf3 {[%emt 0:01:18]} Ra2 {[%emt 0:00:35]} 56. h3 {[%emt 0:00:42]} Ra3+ {[%emt 0:00:33]} 57. Re3 {[%emt 0:00:16]} Ra1 {[%emt 0:00:43]} 58. Re5+ {[%emt 0:00:15]} Kg6 {[%emt 0:00:02]} 59. Kg4 {[%emt 0:00:23]} Rd1 {[%emt 0:00:07]} 60. Rd5 {[%emt 0:00:47]} 1-0

[Event "55th Rubinstein Memorial-B 2019"]
[Site "Polanica-Zdroj"]
[Date "2019.08.19"]
[Round "3.1"]
[White "Dembowski, Andrzej"]
[Black "Janocha, Wieslaw"]
[Result "0-1"]
[ECO "A05"]
[WhiteElo "1840"]
[BlackElo "2264"]
[Annotator "NA"]
[PlyCount "76"]
[EventDate "2019.08.17"]
[EventType "swiss"]
[EventCountry "POL"]
[SourceTitle "playchess.com"]
[Source "ChessBase"]
[SourceQuality "1"]
[TimeControl "40/5400+30:1800+30"]

1. Nf3 {[%emt 0:00:00]} Nf6 {[%emt 0:00:00]} 2. g3 {[%emt 0:01:03]} g6 {[%emt 0:00:03]} 3. Bg2 {[%emt 0:00:14]} Bg7 {[%emt 0:00:26]} 4. d3 {[%emt 0:00:23]} d5 {[%emt 0:00:42]} 5. Nbd2 {[%emt 0:00:25]} O-O {[%emt 0:00:29]} 6. c3 {[%emt 0:00:16]} c5 {[%emt 0:00:35]} 7. O-O {[%emt 0:00:14]} Nc6 {[%emt 0:00:18]} 8. e4 {[%emt 0:01:14]} e5 {[%emt 0:01:08]} 9. Qc2 {[%emt 0:02:46]} Re8 {[%emt 0:04:01]} 10. h3 {[%emt 0:03:37]} h6 {[%emt 0:02:58]} 11. Rd1 {[%emt 0:05:14]} Be6 {[%emt 0:01:05]} 12. Nf1 {[%emt 0:04:12]} Qd7 {[%emt 0:00:17]} 13. Kh2 {[%emt 0:00:24]} Rad8 {[%emt 0:02:22]} 14. Ne3 {[%emt 0:04:34]} d4 {[%emt 0:21:04]} 15. cxd4 {[%emt 0:01:19]} cxd4 {[%emt 0:01:35]} 16. Nc4 {[%emt 0:01:02]} Rc8 {[%emt 0:00:22]} 17. Qe2 {[%emt 0:03:11]} Qc7 {[%emt 0:01:55]} 18. b3 {[%emt 0:06:56]} b5 {[%emt 0:01:26]} 19. Na3 {[%emt 0:00:42]} a6 {[%emt 0:03:44]} 20. Bb2 {[%emt 0:00:23]} Nd7 {[%emt 0:02:28]} 21. Rdc1 {[%emt 0:01:08]} Bf8 {[%emt 0:01:24]} 22. Rc2 {[%emt 0:04:03]} Nc5 {[%emt 0:00:44]} 23. Qd2 {[%emt 0:04:25]} Qb6 {[%emt 0:01:52]} 24. Rcc1 {[%emt 0:03:26]} a5 {[%emt 0:01:47]} 25. Nc2 {[%emt 0:00:36]} b4 {[%emt 0:01:00]} 26. Nce1 {[%emt 0:09:49]} Bg7 {[%emt 0:10:01]} 27. Qd1 {[%emt 0:01:54]} Qb5 {[%emt 0:01:21]} 28. Bf1 {[%emt 0:02:56]} Nxe4 {[%emt 0:00:48]} 29. Qe2 {[%emt 0:02:17]} Nc3 {[%emt 0:00:52]} 30. Bxc3 {[%emt 0:00:13]} dxc3 {[%emt 0:02:31]} 31. Qe3 {[%emt 0:01:33]} e4 {[%emt 0:02:21]} 32. Nh4 {[%emt 0:02:13]} g5 {[%emt 0:02:10]} 33. Nhg2 {[%emt 0:00:20]} Bd4 {[%emt 0:04:07]} 34. Qe2 {[%emt 0:00:32]} exd3 {[%emt 0:00:42]} 35. Nxd3 {[%emt 0:00:18]} Bxb3 {[%emt 0:01:26]} 36. Qh5 {[%emt 0:01:30]} Bc4 {[%emt 0:00:16]} 37. Qd1 {[%emt 0:06:31]} c2 {[%emt 0:02:32]} 38. Qxc2 {[%emt 0:00:16]} Bxa1 {[%emt 0:00:06]} 0-1